Workbook

Sheet Guide d'utilisation
C2: Guide d'utilisation
B6: - Le gabarit est divisé en deux onglets, soit l'onglet Output - Facture Client et l'onglet À remplir
B7: - L'onglet Output - Facture est l'output de l'onglet À remplir, c'est cet onglet qui devra être envoyé comme facture.
B8: – Dans l'onglet Output - Facture, le détaillant doit ajouter son logo à la facture avant l'envoi
B9: - L'onglet À remplir représente la partie à remplir par le détaillant, les informations y étant entrées permettent la création de la facture.
B11: Onglet À remplir
C13: Les cases en gris pâle doivent obligatoirement être remplies par le détaillant | F13: Afin d'accélérer le processus de facturation, les cases en bleu pâle sont déjà préremplies selon les hypothèses de bases détaillées à la Section 2- Hypothèses. Les données peuvent toutefois être modifiées par le détaillant si ce dernier juge que sa situation diffère matériellement du cas de base.
B17: Information générale
B19: Le détaillant doit remplir les informations générales sur son commerce ainsi que sur le destinataire de la facture. Cette section devrait en principe n'être remplie qu'une seule fois. | F19: Si la superficie indiquée par le détaillant ne correspond à aucun des trois modèles standards de commerces, les hypothèses de bases ne peuvent s'appliquer. Conséquemment, plusieurs cases en bleu se coloreront en gris et devront être remplies manuellement par le détaillant.
B20: Selon la superficie indiquée par le détaillant, celui-ci sera classifié selon l'un des trois modèles standards de commerces.
C22: I) Commerces non traditionnels (100 000 pi² et +) | F22: Le coût mensuel du pi² correspond au coût d'espace mensuel (en dollars) déboursé par le détaillant divisé par le nombre de pi² loués.
C23: II) Grandes Épiceries (20 000 à 40 000 pi²)
C24: III) Petites épiceries (en moyenne 10 000 pi²)
B26: Détails de la facturation
B28: En fonction des coûts encourus pour le mois de facturation, le détaillant doit obligatoirement remplir l'information concernant : | E28: Si nécessaire, le détaillant peut ensuite modifier l'information préremplie à propos de :
C29: Le numéro de facture | F29: Prix payé pour une gobeuse
C30: Le mois de facturation | F30: Durée d'amortissement (années) d'une gobeuse
C31: La date de la facture | F31: Coût mensuel de la maintenance et de l'entretien pour une gobeuse
C32: Le nombre de gobeuses en magasin
C33: Les taux horaires estimés selon le type d'emploi pour la manutention et la comptabilité | F33: La superficie (en pi²) pour une gobeuse
F34: La superficie (en pi²) pour l'espace de stockage à l'accueil du magasin ainsi que pour l'espace d'entreposage à l'arrière du magasin
F36: La durée de l'amortissement (années) de la clôture de l'espace d'entreposage
F38: Le prix payé pour la clôture de l'espace d'entreposage
F39: Le nombre de chariots utilisés
F40: Le prix payé pour un chariot et la durée de l'amortissement d'un chariot (années)
F42: Les heures de travail par type d'emploi nécessaire à la manutention et la comptabilité des consignes
F44: Le coût mensuel de l'électricité et des produits de nettoyage pour une gobeuse
F46: Le nombre de sacs et de pellicules d'emballage pour une palette utilisée
F48: Le coût unitaire des sacs et de la pellicule d'emballage pour une palette
F51: Ces cellules se colorent de gris pâle (non préremplies) et doivent obligatoirement être remplies manuellement si la superficie indiquée par le détaillant ne peut se rattacher aux trois modèles standards de commerces
B57: Il est possible pour le détaillant d'ajouter des coûts à la facturation s’il le désire
B59: Pour ajouter des coûts fixes, le détaillant doit cliquer sur le bouton Autres coûts fixes et détailler ces coûts dans les nouvelles cases s'étant affichées. Ces coûts peuvent être amortissables ou standards et se reflèteront dans la facture envoyée
B60: Dans la section coûts variables, le détaillant peut ajouter des postes de main-d'œuvre supplémentaires et spécifier le nombre d'heures et le taux horaire moyen attribués aux activités. Il est important de bien nommer les postes puisque ceux-ci se retrouveront dans la facture envoyée.
B63: Toujours dans la section coûts variables, le détaillant peut ajouter des postes de coûts supplémentaires comme l'impression, les coûts de transition ou autres coûts quantifiables jugés pertinents. Il est important de bien nommer ces coûts puisqu'ils apparaitront sur la facture envoyée.
B69: Il est possible que la Suite Office de votre poste de travail bloque l'exécution de macros provenant de sources inconnues
B75: Pour régler cette problématique, cliquez (avec le bouton droit de la souris) sur le fichier, puis sélectionnez Propriétés dans le menu. En bas de l’onglet Général, vous devriez voir une section Sécurité. Cochez la case Débloquer. Vous devez préalablement avoir enregistré le fichier et fermé l'application.
C78: Si la problématique persiste, veuillez contacter vos services TI, ou encore, le service de support Microsoft
C81: Plus d'aide

Sheet À remplir
A1: MODÈLE À REMPLIR
B3: Insérer logo
T4: Janvier
A5: Information générale | L5: 2. Hypothèses | T5: Février
T6: Mars
B7: Nom du commerce | D7: X | L7: Type de commerce | R7: Oui | T7: Avril
M8: Borne inférieure (en pi²) | N8: Borne supérieure (en pi²) | R8: Non | T8: Mai
B9: Adresse ligne 1 | D9: 1234, rue X | L9: Commerces non traditionnels | M9: 100000 | N9: 10000000 | T9: Juin
B10: Adresse ligne 2 | D10: Québec, Canada | L10: Grandes épiceries | M10: 20000 | N10: 40000 | T10: Juillet
L11: Petites épiceries | M11: 2500 | N11: 19999 | T11: Août
B12: Contact (@ ou téléphone) | D12: X@gmail.com | L12: Hors-normes | M12: / | N12: / | T12: Septembre
T13: Octobre
B14: Superficie | D14: 30000 | L14: Gobeuses | T14: Novembre
L15: Prix d'une gobeuse | M15: 18370 | T15: Décembre
B16: Type de commerce | D16: =IFERROR(_xlfn.IFS(AND(D14>=M11,D14<=N11),L11,AND(D14>=M10,D14<=N10),L10,AND(D14>=M9,D14<=N9),L9),"Autres") -> Grandes épiceries | L16: Durée de l'amortissement d'une gobeuse | M16: 10
L17: Maintenance mensuelle | M17: 92.25
B18: Coût mensuel du pi2 | D18: 1.5
L19: Espace
A20: Information du destinataire | L20: Superficie d'une gobeuse en pi² | M20: 7.5
B22: Nom | D22: Union | M22: =L9 -> Commerces non traditionnels | N22: =L10 -> Grandes épiceries | O22: =L11 -> Petites épiceries
L23: Espace de stockage à l'accueil en pi2 | M23: =2.5*2.5 -> 6.25 | N23: =2.5*2.5 -> 6.25 | O23: =2.5*2.5 -> 6.25
B24: Adresse ligne 1 | D24: 5678, rue Y | L24: Espace d'entreposage des consignes en pi2 | M24: 64 | N24: 215 | O24: 100
B25: Adresse ligne 2 | D25: Québec, Canada
L26: Clôture
L27: Durée de l'amortissement de la clôture (année) | M27: 7
A28: Détails de la facturation | M28: Commerces non traditionnels | N28: Grandes épiceries | O28: Petites épiceries
L29: Prix de la clôture | M29: 2500 | N29: 6500 | O29: 0
B30: FACTURE N° : | D30: 12
L31: Chariot
B32: Pour le mois de | D32: Mars | L32: Prix d'un chariot | M32: 325
L33: Durée de l'amortissement d'un chariot (année) | M33: 7
B34: Date (AAAA-MM-JJ) : | D34: 2023-08-31 | M34: Commerces non traditionnels | N34: Grandes épiceries | O34: Petites épiceries
L35: Nombre de chariots | M35: 1 | N35: 2 | O35: 1
A36: Coûts fixes | H36: =SUM(I37:I75) -> 930.1607143
D37: Nombre | F37: Prix d'une gobeuse | L37: Main d'œuvre et comptabilité
B38: Gobeuses | D38: 2 | F38: =M15 -> 18370 | I38: =((D38*F38)/12)/D40 -> 306.1666667 | M38: Commerces non traditionnels | N38: Grandes épiceries | O38: Petites épiceries
D39: Amortissement (année) | L39: Caissier | M39: 0 | N39: 18.82650074 | O39: 1.173028352
D40: =M16 -> 10 | L40: Commis | M40: 133.44 | N40: 66.38606621 | O40: 66.3860686
L41: Emballeur | M41: 0 | N41: 15.86194753 | O41: 15.86194099
F42: Coût/mois par gobeuse | L42: Réceptionnaire | M42: 0 | N42: 4.848687232 | O42: 4.848693201
B43: Maintenance des gobeuses | F43: =M17 -> 92.25 | I43: =F43*D38 -> 184.5 | L43: Comptabilité | M43: 4.2 | N43: 5.4 | O43: 4
D45: Superficie en pi2 | L45: Autres variables
B46: Espace gobeuse | D46: =M20 -> 7.5 | I46: =D46*D38*D18 -> 22.5 | L46: Coût mensuel de l'électricité pour une gobeuse | M46: =2.3 -> 2.3
B47: Espace de stockage à l'accueil | D47: =IFERROR(_xlfn.IFS(D16=M22,M23,D16=N22,N23,D16=O22,O23),"À remplir") -> 6.25 | I47: =D47*D18 -> 9.375 | L47: Coût d'un rouleau pellicule d'emballage | M47: 0.8
B48: Espace d'entreposage | D48: =IFERROR(_xlfn.IFS(D16=M22,M24,D16=N22,N24,D16=O22,O24),"À remplir") -> 215 | I48: =D48*D18 -> 322.5 | L48: Coût d'un sac | M48: 0.3
L49: Coût mensuel des produits de nettoyage pour une gobeuse | M49: 1.1
D50: Amortissement (année) | F50: Prix de la clôture | M50: =M22 -> Commerces non traditionnels | N50: =N22 -> Grandes épiceries | O50: =O22 -> Petites épiceries
B51: Cloture | D51: =M27 -> 7 | F51: =IFERROR(_xlfn.IFS(D16=M28,M29,D16=N28,N29,D16=O28,O29),"À remplir") -> 6500 | I51: =(F51/D51)/12 -> 77.38095238 | L51: Pellicule d'emballage pour une palette : nombre par mois | M51: 3.5 | N51: 3.5 | O51: 3.5
L52: Sacs : nombre par mois | M52: 245 | N52: 231 | O52: 231
D53: Nombre | F53: Prix d'un chariot
B54: Chariots | D54: =IFERROR(_xlfn.IFS(D16=M34,M35,D16=N34,N35,D16=O34,O35),"À remplir") -> 2 | F54: =M32 -> 325 | I54: =((D54*F54)/D56)/12 -> 7.738095238
D55: Amortissement (année)
D56: =M33 -> 7
B59: Autre amortissable | D59: =D53 -> Nombre | F59: Prix
D60: =IF(B60=0,0,"À remplir") -> 0 | F60: =IF(B60=0,0,"À remplir") -> 0 | I60: =IFERROR((D60*F60)/D62,0)/12 -> 0
D61: =D55 -> Amortissement (année)
D62: =IF(B60=0,0,"À remplir") -> 0
B64: Autre amortissable | D64: =D59 -> Nombre | F64: =F59 -> Prix
D65: =IF(B65=0,0,"À remplir") -> 0 | F65: =IF(B65=0,0,"À remplir") -> 0 | I65: =IFERROR((D65*F65)/D67,0)/12 -> 0
D66: =D61 -> Amortissement (année)
D67: =IF(B65=0,0,"À remplir") -> 0
B69: Autres | F69: Coût mensuel
F70: =IF(B70=0,0,"À remplir") -> 0 | I70: =F70 -> 0
F71: =IF(B71=0,0,"À remplir") -> 0 | I71: =F71 -> 0
F72: =IF(B72=0,0,"À remplir") -> 0 | I72: =F72 -> 0
F73: =IF(B73=0,0,"À remplir") -> 0 | I73: =F73 -> 0
F74: =IF(B74=0,0,"À remplir") -> 0 | I74: =F74 -> 0
A76: Coûts variables | H76: =SUM(I77:I106) -> 2370.8037
B78: Heures manutention | D78: Heures de travail | F78: Taux/h
B79: Caissier | D79: =IFERROR(_xlfn.IFS(D16=M38,M39,D16=N38,N39,D16=O38,O39),"À remplir") -> 18.82650074 | F79: 22 | I79: =D79*F79 -> 414.1830162
B80: Commis | D80: =IFERROR(_xlfn.IFS(D16=M38,M40,D16=N38,N40,D16=O38,O40),"À remplir") -> 66.38606621 | F80: 19 | I80: =D80*F80 -> 1261.335258
B81: Emballeur | D81: =IFERROR(_xlfn.IFS(D16=M38,M41,D16=N38,N41,D16=O38,O41),"À remplir") -> 15.86194753 | F81: 18 | I81: =D81*F81 -> 285.5150555
B82: Réceptionnaire | D82: =IFERROR(_xlfn.IFS(D16=M38,M42,D16=N38,N42,D16=O38,O42),"À remplir") -> 4.848687232 | F82: 18 | I82: =D82*F82 -> 87.27637018
B83: Heures de comptabilité | D83: =IFERROR(_xlfn.IFS(D16=M38,M43,D16=N38,N43,D16=O38,O43),"À remplir") -> 5.4 | F83: 45.11 | I83: =D83*F83 -> 243.594
B85: Autres postes | D85: Heures de travail | F85: Taux moyen/h
D86: =IF(B86=0,0,"À remplir") -> 0 | F86: =IF(B86=0,0,"À remplir") -> 0 | I86: =IFERROR(D86*F86,0) -> 0
D87: =IF(B87=0,0,"À remplir") -> 0 | F87: =IF(B87=0,0,"À remplir") -> 0 | I87: =IFERROR(D87*F87,0) -> 0
D88: =IF(B88=0,0,"À remplir") -> 0 | F88: =IF(B88=0,0,"À remplir") -> 0 | I88: =IFERROR(D88*F88,0) -> 0
D89: =IF(B89=0,0,"À remplir") -> 0 | F89: =IF(B89=0,0,"À remplir") -> 0 | I89: =IFERROR(D89*F89,0) -> 0
F91: Coût/mois par gobeuse
B92: Électricité des gobeuses | F92: =M46 -> 2.3 | I92: =F92*D38 -> 4.6
B93: Produits de nettoyage des gobeuses | F93: =M49 -> 1.1 | I93: =F93*D38 -> 2.2
D95: Nombre/mois | F95: Coût/unité
B96: Pellicule d'emballage pour une palette | D96: =IFERROR(_xlfn.IFS(D16=M50,M51,D16=N50,N51,D16=O50,O51),"À remplir") -> 3.5 | F96: =M47 -> 0.8 | I96: =D96*F96 -> 2.8
B97: Sacs | D97: =IFERROR(_xlfn.IFS(D16=M50,M52,D16=N50,N52,D16=O50,O52),"À remplir") -> 231 | F97: =M48 -> 0.3 | I97: =D97*F97 -> 69.3
B99: Autres coûts variables | F99: Coût
F100: =IF(B100=0,0,"À remplir") -> 0 | I100: =IFERROR(F100,0) -> 0
F101: =IF(B101=0,0,"À remplir") -> 0 | I101: 0
F102: =IF(B102=0,0,"À remplir") -> 0 | I102: 0
F103: 0 | I103: 0
F104: 0 | I104: 0
F105: 0 | I105: 0
E108: Coût total | I108: =SUM(I36:I106) -> 3300.964414

Sheet Output - Facture
B2: Insérer Logo | C2: FACTURE N° : | F2: ='À remplir'!D30 -> 12
C3: Pour le mois de : | F3: ='À remplir'!D32 -> Mars
C4: En date du : | F4: ='À remplir'!D34 -> 2023-08-31
A6: Demandeur
B8: Nom du commerce : | C8: ='À remplir'!D7 -> X
B10: Adresse | C10: ='À remplir'!D9 -> 1234, rue X
C11: ='À remplir'!D10 -> Québec, Canada
B13: Contact | C13: ='À remplir'!D12 -> X@gmail.com
B15: Superficie (pi2) : | C15: ='À remplir'!D14 -> 30000
B16: Type de commerce : | C16: ='À remplir'!D16 -> Grandes épiceries
A18: À l'intention de
B19: Nom | C19: ='À remplir'!D22 -> Union
B20: Adresse | C20: ='À remplir'!D24 -> 5678, rue Y
C21: ='À remplir'!D25 -> Québec, Canada
A23: Détails de la facturation
A24: Coûts fixes | F24: =SUM(G25:G38) -> 930.1607143
B26: Gobeuses (amortissement, maintenance) | C26: ='À remplir'!D38 -> 2 | D26: x | E26: =((('À remplir'!F38)/12)/10)+'À remplir'!F43 -> 245.3333333 | G26: ='À remplir'!I38+'À remplir'!I43 -> 490.6666667
B28: Espace requis | C28: =('À remplir'!D46*'À remplir'!D38)+'À remplir'!D47+'À remplir'!D48 -> 236.25 | D28: x | E28: ='À remplir'!D18 -> 1.5 | G28: ='À remplir'!I46+'À remplir'!I47+'À remplir'!I48 -> 354.375
B30: Clôtures et chariots | G30: ='À remplir'!I51+'À remplir'!I54 -> 85.11904762
B31: ='À remplir'!B60 -> 0 | G31: ='À remplir'!I60 -> 0
B32: ='À remplir'!B65 -> 0 | G32: ='À remplir'!I65 -> 0
B33: ='À remplir'!B70 -> 0 | G33: ='À remplir'!I70 -> 0
B34: ='À remplir'!B71 -> 0 | G34: ='À remplir'!I71 -> 0
B35: ='À remplir'!B72 -> 0 | G35: ='À remplir'!I72 -> 0
B36: ='À remplir'!B73 -> 0 | G36: ='À remplir'!I73 -> 0
B37: ='À remplir'!B74 -> 0 | G37: ='À remplir'!I74 -> 0
A39: Coûts variables | F39: =SUM(G40:G58) -> 2370.8037
B41: Manutention (h) | C41: =SUM('À remplir'!D79:D82) -> 105.9232017 | D41: x | E41: Variable | G41: =SUM('À remplir'!I79:I82) -> 2048.3097
B42: Comptabilité (h) | C42: ='À remplir'!D83 -> 5.4 | D42: x | E42: ='À remplir'!F83 -> 45.11 | G42: ='À remplir'!I83 -> 243.594
B43: ='À remplir'!B86 -> 0 | C43: ='À remplir'!D86 -> 0 | D43: =IF(G43=0,,"x") -> 0 | E43: ='À remplir'!F86 -> 0 | G43: ='À remplir'!I86 -> 0
B44: ='À remplir'!B87 -> 0 | C44: ='À remplir'!D87 -> 0 | D44: =IF(G44=0,,"x") -> 0 | E44: ='À remplir'!F87 -> 0 | G44: ='À remplir'!I87 -> 0
B45: ='À remplir'!B88 -> 0 | C45: ='À remplir'!D88 -> 0 | D45: 0 | E45: ='À remplir'!F88 -> 0 | G45: ='À remplir'!I88 -> 0
B46: ='À remplir'!B89 -> 0 | C46: ='À remplir'!D89 -> 0 | D46: 0 | E46: ='À remplir'!F89 -> 0 | G46: ='À remplir'!I89 -> 0
B48: ='À remplir'!B92 -> Électricité des gobeuses | G48: ='À remplir'!I92 -> 4.6
B49: ='À remplir'!B93 -> Produits de nettoyage des gobeuses | G49: ='À remplir'!I93 -> 2.2
B50: ='À remplir'!B96 -> Pellicule d'emballage pour une palette | G50: ='À remplir'!I96 -> 2.8
B51: ='À remplir'!B97 -> Sacs | G51: ='À remplir'!I97 -> 69.3
B52: ='À remplir'!B100 -> 0 | G52: ='À remplir'!I100 -> 0
B53: ='À remplir'!B101 -> 0 | G53: ='À remplir'!I101 -> 0
B54: ='À remplir'!B102 -> 0 | G54: ='À remplir'!I102 -> 0
B55: ='À remplir'!B103 -> 0 | G55: ='À remplir'!I103 -> 0
B56: ='À remplir'!B104 -> 0 | G56: ='À remplir'!I104 -> 0
B57: ='À remplir'!B105 -> 0 | G57: ='À remplir'!I105 -> 0
E60: Coût total mensuel | G60: =F39+F24 -> 3300.964414
